[Event "Titled Tuesday Blitz August 15 Late 2023"]
[White "Jaracz, Pawel"]
[Black "Wafa, Shrook"]
[WhiteFideId "1102222"]
[BlackFideId "10609970"]
[WhiteElo "2725"]
[BlackElo "2405"]
[Result "1-0"]
[Round "1"]
[TimeControl "180+1"]
[Date "2023.08.15"]
[WhiteClock "0:00:15"]
[BlackClock "0:00:34"]
[Board "76"]

1. d4 {[%clk 0:02:57]}  d5 {[%clk 0:02:55]} 2. c4 {[%clk 0:02:57]}  c6 {[%clk 0:02:55]} 3. e3 {[%clk 0:02:57]}  Nf6 {[%clk 0:02:55]} 4. Nc3 {[%clk 0:02:57]}  Bf5 {[%clk 0:02:55]} 5. cxd5 {[%clk 0:02:55]}  cxd5 {[%clk 0:02:55]} 6. Qb3 {[%clk 0:02:55]}  Nc6 {[%clk 0:02:52]} 7. Qxb7 {[%clk 0:02:49]}  Bd7 {[%clk 0:02:51]} 8. Bb5 {[%clk 0:02:43]}  Rb8 {[%clk 0:02:46]} 9. Qa6 {[%clk 0:02:23]}  Rb6 {[%clk 0:02:44]} 10. Qa4 {[%clk 0:02:22]}  e6 {[%clk 0:02:38]} 11. Nf3 {[%clk 0:02:15]}  Bd6 {[%clk 0:02:37]} 12. O-O {[%clk 0:02:13]}  O-O {[%clk 0:02:37]} 13. Bd2 {[%clk 0:01:58]}  a6 {[%clk 0:02:17]} 14. Bxc6 {[%clk 0:01:57]}  Bxc6 {[%clk 0:02:17]} 15. Qc2 {[%clk 0:01:57]}  Qb8 {[%clk 0:02:17]} 16. b3 {[%clk 0:01:55]}  Rc8 {[%clk 0:02:17]} 17. Qd3 {[%clk 0:01:46]}  Bb4 {[%clk 0:02:15]} 18. Rfc1 {[%clk 0:01:45]}  h6 {[%clk 0:02:12]} 19. Ne5 {[%clk 0:01:44]}  Bxc3 {[%clk 0:02:09]} 20. Bxc3 {[%clk 0:01:43]}  Bb5 {[%clk 0:02:09]} 21. Qd1 {[%clk 0:01:40]}  Ne4 {[%clk 0:02:08]} 22. Ba5 {[%clk 0:01:39]}  Rb7 {[%clk 0:01:58]} 23. Rxc8+ {[%clk 0:01:35]}  Qxc8 {[%clk 0:01:58]} 24. Rc1 {[%clk 0:01:35]}  Qb8 {[%clk 0:01:59]} 25. Qc2 {[%clk 0:01:33]}  f6 {[%clk 0:01:54]} 26. Qc8+ {[%clk 0:01:19]}  Qxc8 {[%clk 0:01:45]} 27. Rxc8+ {[%clk 0:01:18]}  Kh7 {[%clk 0:01:45]} 28. Nc6 {[%clk 0:01:04]}  Nd6 {[%clk 0:01:35]} 29. Rd8 {[%clk 0:01:02]}  Bxc6 {[%clk 0:01:34]} 30. Rxd6 {[%clk 0:01:02]}  Bb5 {[%clk 0:01:28]} 31. Rxe6 {[%clk 0:01:00]}  Rb8 {[%clk 0:01:29]} 32. Bb6 {[%clk 0:00:57]}  Bd7 {[%clk 0:01:19]} 33. Rd6 {[%clk 0:00:56]}  Bf5 {[%clk 0:01:19]} 34. f3 {[%clk 0:00:51]}  Bg6 {[%clk 0:01:15]} 35. Bc5 {[%clk 0:00:48]}  a5 {[%clk 0:01:15]} 36. Rxd5 {[%clk 0:00:47]}  a4 {[%clk 0:01:16]} 37. Rd7 {[%clk 0:00:33]}  axb3 {[%clk 0:01:14]} 38. axb3 {[%clk 0:00:34]}  Bf5 {[%clk 0:01:08]} 39. Ra7 {[%clk 0:00:30]}  Rxb3 {[%clk 0:01:04]} 40. e4 {[%clk 0:00:26]}  Be6 {[%clk 0:00:59]} 41. Bf8 {[%clk 0:00:25]}  Bc4 {[%clk 0:00:59]} 42. Rxg7+ {[%clk 0:00:23]}  Kh8 {[%clk 0:00:59]} 43. Rc7 {[%clk 0:00:20]}  Bb5 {[%clk 0:00:54]} 44. Kf2 {[%clk 0:00:19]}  h5 {[%clk 0:00:55]} 45. h4 {[%clk 0:00:19]}  Rb2+ {[%clk 0:00:53]} 46. Kg3 {[%clk 0:00:18]}  Bf1 {[%clk 0:00:53]} 47. d5 {[%clk 0:00:18]}  Rxg2+ {[%clk 0:00:51]} 48. Kf4 {[%clk 0:00:19]}  Rd2 {[%clk 0:00:51]} 49. Bg7+ {[%clk 0:00:19]}  Kg8 {[%clk 0:00:51]} 50. Bxf6 {[%clk 0:00:20]}  Bh3 {[%clk 0:00:51]} 51. Be5 {[%clk 0:00:19]}  Rd3 {[%clk 0:00:50]} 52. d6 {[%clk 0:00:18]}  Kf8 {[%clk 0:00:49]} 53. Rc3 {[%clk 0:00:17]}  Rd1 {[%clk 0:00:48]} 54. Kg5 {[%clk 0:00:17]}  Bd7 {[%clk 0:00:45]} 55. Kf6 {[%clk 0:00:16]}  Ke8 {[%clk 0:00:40]} 56. Ra3 {[%clk 0:00:16]}  Bc8 {[%clk 0:00:40]} 57. Ra8 {[%clk 0:00:15]}  Kd7 {[%clk 0:00:40]} 58. Ra7+ {[%clk 0:00:15]}  Kd8 {[%clk 0:00:38]} 59. f4 {[%clk 0:00:15]}  Rg1 {[%clk 0:00:35]} 60. Kf7 {[%clk 0:00:14]}  Rg4 {[%clk 0:00:34]} 61. Bf6# {[%clk 0:00:15]} 1-0


[Site "https://www.chess.com"]

[Event "Titled Tuesday Blitz August 15 Late 2023"]
[White "chessmateto"]
[Black "carokannlover213"]
[WhiteElo "2405"]
[BlackElo "2720"]
[Result "0-1"]
[Round "1"]
[TimeControl "180+1"]
[Date "2023.08.15"]
[WhiteClock "0:00:08"]
[BlackClock "0:00:09"]
[Board "77"]

1. c4 {[%clk 0:02:59]}  e6 {[%clk 0:02:41]} 2. Nc3 {[%clk 0:02:58]}  d5 {[%clk 0:02:40]} 3. cxd5 {[%clk 0:02:57]}  exd5 {[%clk 0:02:40]} 4. d4 {[%clk 0:02:58]}  c6 {[%clk 0:02:40]} 5. Bf4 {[%clk 0:02:57]}  Bb4 {[%clk 0:02:17]} 6. e3 {[%clk 0:02:55]}  Nf6 {[%clk 0:02:04]} 7. Bd3 {[%clk 0:02:55]}  O-O {[%clk 0:02:03]} 8. Ne2 {[%clk 0:02:55]}  Bd6 {[%clk 0:01:58]} 9. O-O {[%clk 0:02:50]}  Re8 {[%clk 0:01:55]} 10. Qc2 {[%clk 0:02:45]}  h6 {[%clk 0:01:53]} 11. Rfe1 {[%clk 0:02:41]}  a5 {[%clk 0:01:39]} 12. Rac1 {[%clk 0:02:35]}  Na6 {[%clk 0:01:34]} 13. a3 {[%clk 0:02:33]}  Nc7 {[%clk 0:01:33]} 14. Na4 {[%clk 0:02:29]}  Bxf4 {[%clk 0:01:21]} 15. Nxf4 {[%clk 0:02:29]}  Ne6 {[%clk 0:01:21]} 16. Nxe6 {[%clk 0:02:23]}  Bxe6 {[%clk 0:01:21]} 17. Nc5 {[%clk 0:02:23]}  b6 {[%clk 0:01:20]} 18. Nxe6 {[%clk 0:02:18]}  Rxe6 {[%clk 0:01:20]} 19. Qe2 {[%clk 0:02:00]}  Qe7 {[%clk 0:01:18]} 20. Bf5 {[%clk 0:01:46]}  Rd6 {[%clk 0:01:16]} 21. Rc2 {[%clk 0:01:46]}  g6 {[%clk 0:01:07]} 22. Bd3 {[%clk 0:01:45]}  Rc8 {[%clk 0:00:59]} 23. Rec1 {[%clk 0:01:44]}  Rc7 {[%clk 0:00:57]} 24. b4 {[%clk 0:01:42]}  axb4 {[%clk 0:00:55]} 25. axb4 {[%clk 0:01:41]}  Re6 {[%clk 0:00:56]} 26. Rc3 {[%clk 0:01:12]}  Qxb4 {[%clk 0:00:48]} 27. Qc2 {[%clk 0:01:07]}  Qd6 {[%clk 0:00:42]} 28. Bb5 {[%clk 0:01:06]}  Ng4 {[%clk 0:00:31]} 29. g3 {[%clk 0:00:58]}  Rf6 {[%clk 0:00:31]} 30. f4 {[%clk 0:00:48]}  Qe7 {[%clk 0:00:26]} 31. Qe2 {[%clk 0:00:40]}  h5 {[%clk 0:00:25]} 32. h3 {[%clk 0:00:40]}  Nh6 {[%clk 0:00:25]} 33. Bxc6 {[%clk 0:00:39]}  Nf5 {[%clk 0:00:22]} 34. Kf2 {[%clk 0:00:31]}  h4 {[%clk 0:00:12]} 35. g4 {[%clk 0:00:26]}  Ng3 {[%clk 0:00:09]} 36. Qb5 {[%clk 0:00:23]}  Ne4+ {[%clk 0:00:09]} 37. Kf3 {[%clk 0:00:20]}  Nxc3 {[%clk 0:00:10]} 38. Rxc3 {[%clk 0:00:20]}  Qd6 {[%clk 0:00:10]} 39. g5 {[%clk 0:00:12]}  Re6 {[%clk 0:00:10]} 40. Qxb6 {[%clk 0:00:12]}  Rxc6 {[%clk 0:00:09]} 41. Rxc6 {[%clk 0:00:08]}  Qxc6 {[%clk 0:00:10]} 42. Qd8+ {[%clk 0:00:09]}  Kg7 {[%clk 0:00:10]} 43. Kg4 {[%clk 0:00:08]}  Qc2 {[%clk 0:00:08]} 44. Kxh4 {[%clk 0:00:08]}  Qf2+ {[%clk 0:00:08]} 45. Kg4 {[%clk 0:00:09]}  Qe2+ {[%clk 0:00:09]} 46. Kh4 {[%clk 0:00:09]}  Qxe3 {[%clk 0:00:09]} 47. f5 {[%clk 0:00:08]}  Qf4# {[%clk 0:00:09]} 0-1


[Site "https://www.chess.com"]

[Event "Titled Tuesday Blitz August 15 Late 2023"]
[White "Bryakin, Mikhail"]
[Black "Baghdasaryan, Vahe"]
[WhiteFideId "4165314"]
[BlackFideId "13303139"]
[WhiteElo "2719"]
[BlackElo "2404"]
[Result "0-1"]
[Round "1"]
[TimeControl "180+1"]
[Date "2023.08.15"]
[WhiteClock "0:01:25"]
[BlackClock "0:00:44"]
[Board "78"]

1. c4 {[%clk 0:02:55]}  e6 {[%clk 0:02:59]} 2. g3 {[%clk 0:02:53]}  d5 {[%clk 0:02:56]} 3. Bg2 {[%clk 0:02:54]}  Nf6 {[%clk 0:02:55]} 4. Nf3 {[%clk 0:02:54]}  dxc4 {[%clk 0:02:55]} 5. Qa4+ {[%clk 0:02:54]}  Bd7 {[%clk 0:02:55]} 6. Qxc4 {[%clk 0:02:54]}  c5 {[%clk 0:02:55]} 7. d4 {[%clk 0:02:52]}  Bc6 {[%clk 0:02:43]} 8. dxc5 {[%clk 0:02:49]}  Nbd7 {[%clk 0:02:38]} 9. b4 {[%clk 0:02:48]}  a5 {[%clk 0:02:31]} 10. Nbd2 {[%clk 0:02:20]}  axb4 {[%clk 0:02:28]} 11. Nb3 {[%clk 0:02:20]}  Bd5 {[%clk 0:01:54]} 12. Qxb4 {[%clk 0:02:19]}  b6 {[%clk 0:01:40]} 13. Be3 {[%clk 0:02:07]}  bxc5 {[%clk 0:01:38]} 14. Nxc5 {[%clk 0:01:58]}  Rc8 {[%clk 0:01:22]} 15. Rc1 {[%clk 0:01:58]}  Ne4 {[%clk 0:01:05]} 16. Ne5 {[%clk 0:01:41]}  Nexc5 {[%clk 0:00:55]} 17. Bxd5 {[%clk 0:01:36]}  Nd3+ {[%clk 0:00:52]} 18. Kd1 {[%clk 0:01:25]}  Nxb4 {[%clk 0:00:44]} 0-1


[Site "https://www.chess.com"]

[Event "Titled Tuesday Blitz August 15 Late 2023"]
[White "Gubajdullin, Alexei"]
[Black "dodoucb"]
[WhiteFideId "4141202"]
[WhiteElo "2713"]
[BlackElo "2396"]
[Result "1-0"]
[Round "1"]
[TimeControl "180+1"]
[Date "2023.08.15"]
[WhiteClock "0:02:47"]
[BlackClock "0:02:15"]
[Board "82"]

1. d4 {[%clk 0:02:59]}  d5 {[%clk 0:02:56]} 2. Nf3 {[%clk 0:02:59]}  Nf6 {[%clk 0:02:55]} 3. Bf4 {[%clk 0:02:59]}  e6 {[%clk 0:02:55]} 4. Nbd2 {[%clk 0:02:57]}  c5 {[%clk 0:02:54]} 5. e3 {[%clk 0:02:57]}  Nc6 {[%clk 0:02:54]} 6. c3 {[%clk 0:02:57]}  Bd6 {[%clk 0:02:54]} 7. Bg3 {[%clk 0:02:57]}  O-O {[%clk 0:02:54]} 8. Bd3 {[%clk 0:02:56]}  Re8 {[%clk 0:02:53]} 9. Ne5 {[%clk 0:02:55]}  Qc7 {[%clk 0:02:48]} 10. f4 {[%clk 0:02:55]}  b6 {[%clk 0:02:44]} 11. Bh4 {[%clk 0:02:54]}  Nd7 {[%clk 0:02:15]} 12. Bxh7+ {[%clk 0:02:47]} 1-0


[Site "https://www.chess.com"]

[Event "Titled Tuesday Blitz August 15 Late 2023"]
[White "Melikhov, Evgeny V."]
[Black "Matinian, Nikita"]
[WhiteFideId "4122046"]
[BlackFideId "24129100"]
[WhiteElo "2396"]
[BlackElo "2712"]
[Result "0-1"]
[Round "1"]
[TimeControl "180+1"]
[Date "2023.08.15"]
[WhiteClock "0:00:05"]
[BlackClock "0:01:07"]
[Board "83"]

1. d4 {[%clk 0:03:00]}  Nf6 {[%clk 0:02:55]} 2. c4 {[%clk 0:03:00]}  e6 {[%clk 0:02:56]} 3. Nc3 {[%clk 0:02:59]}  Bb4 {[%clk 0:02:56]} 4. Qc2 {[%clk 0:02:59]}  O-O {[%clk 0:02:55]} 5. e4 {[%clk 0:02:59]}  Nc6 {[%clk 0:02:54]} 6. d5 {[%clk 0:02:46]}  exd5 {[%clk 0:02:53]} 7. cxd5 {[%clk 0:02:45]}  Nd4 {[%clk 0:02:49]} 8. Qd3 {[%clk 0:02:42]}  Re8 {[%clk 0:02:48]} 9. Be3 {[%clk 0:02:30]}  Rxe4 {[%clk 0:02:41]} 10. O-O-O {[%clk 0:02:29]}  Bxc3 {[%clk 0:02:35]} 11. bxc3 {[%clk 0:02:23]}  Nf5 {[%clk 0:02:32]} 12. Bg5 {[%clk 0:02:13]}  Qe7 {[%clk 0:02:17]} 13. Bxf6 {[%clk 0:01:56]}  gxf6 {[%clk 0:02:17]} 14. g4 {[%clk 0:01:42]}  Qa3+ {[%clk 0:02:17]} 15. Kb1 {[%clk 0:01:41]}  Ra4 {[%clk 0:02:09]} 16. Qc2 {[%clk 0:01:36]}  Nd6 {[%clk 0:01:56]} 17. Qb3 {[%clk 0:01:31]}  Qxb3+ {[%clk 0:01:52]} 18. axb3 {[%clk 0:01:31]}  Rxg4 {[%clk 0:01:52]} 19. Bd3 {[%clk 0:01:28]}  a5 {[%clk 0:01:51]} 20. Nf3 {[%clk 0:01:23]}  a4 {[%clk 0:01:51]} 21. Rhg1 {[%clk 0:01:20]}  Rxg1 {[%clk 0:01:46]} 22. Rxg1+ {[%clk 0:01:19]}  Kh8 {[%clk 0:01:46]} 23. b4 {[%clk 0:01:13]}  b5 {[%clk 0:01:47]} 24. h4 {[%clk 0:01:08]}  Bb7 {[%clk 0:01:46]} 25. Nd4 {[%clk 0:00:54]}  Bxd5 {[%clk 0:01:42]} 26. Nxb5 {[%clk 0:00:49]}  Nxb5 {[%clk 0:01:42]} 27. Bxb5 {[%clk 0:00:49]}  c6 {[%clk 0:01:43]} 28. Bd3 {[%clk 0:00:46]}  Rg8 {[%clk 0:01:38]} 29. Rxg8+ {[%clk 0:00:43]}  Kxg8 {[%clk 0:01:39]} 30. Kb2 {[%clk 0:00:44]}  Bb3 {[%clk 0:01:37]} 31. c4 {[%clk 0:00:42]}  Kf8 {[%clk 0:01:33]} 32. b5 {[%clk 0:00:42]}  Ke7 {[%clk 0:01:31]} 33. b6 {[%clk 0:00:42]}  Kd8 {[%clk 0:01:32]} 34. c5 {[%clk 0:00:41]}  h6 {[%clk 0:01:29]} 35. Ka3 {[%clk 0:00:32]}  Kc8 {[%clk 0:01:29]} 36. Ba6+ {[%clk 0:00:31]}  Kb8 {[%clk 0:01:29]} 37. Kb4 {[%clk 0:00:30]}  Bd1 {[%clk 0:01:20]} 38. Bc4 {[%clk 0:00:27]}  Kb7 {[%clk 0:01:11]} 39. Bxf7 {[%clk 0:00:26]}  d5 {[%clk 0:01:08]} 40. cxd6 {[%clk 0:00:16]}  Kxb6 {[%clk 0:01:09]} 41. Bc4 {[%clk 0:00:14]}  c5+ {[%clk 0:01:08]} 42. Kc3 {[%clk 0:00:14]}  Kc6 {[%clk 0:01:08]} 43. Kd2 {[%clk 0:00:09]}  Bb3 {[%clk 0:01:08]} 44. Bd3 {[%clk 0:00:07]}  Kxd6 {[%clk 0:01:08]} 45. Kc3 {[%clk 0:00:05]}  Ke5 {[%clk 0:01:07]} 0-1


[Site "https://www.chess.com"]

[Event "Titled Tuesday Blitz August 15 Late 2023"]
[White "Khripachenko, Alexander"]
[Black "Mikhalsky, Vladimir"]
[WhiteFideId "54184975"]
[BlackFideId "14144352"]
[WhiteElo "2710"]
[BlackElo "2393"]
[Result "1-0"]
[Round "1"]
[TimeControl "180+1"]
[Date "2023.08.15"]
[WhiteClock "0:02:06"]
[BlackClock "0:00:05"]
[Board "84"]

1. e4 {[%clk 0:03:00]}  g6 {[%clk 0:02:15]} 2. d4 {[%clk 0:02:59]}  Bg7 {[%clk 0:02:12]} 3. Nf3 {[%clk 0:03:00]}  d6 {[%clk 0:02:12]} 4. Bc4 {[%clk 0:03:00]}  e6 {[%clk 0:02:08]} 5. O-O {[%clk 0:02:59]}  Ne7 {[%clk 0:02:06]} 6. Re1 {[%clk 0:03:00]}  a6 {[%clk 0:02:02]} 7. a4 {[%clk 0:02:58]}  b6 {[%clk 0:02:02]} 8. c3 {[%clk 0:02:58]}  Bb7 {[%clk 0:02:02]} 9. Nbd2 {[%clk 0:02:59]}  Nd7 {[%clk 0:02:01]} 10. Nf1 {[%clk 0:02:59]}  O-O {[%clk 0:02:00]} 11. Ng3 {[%clk 0:03:00]}  h6 {[%clk 0:02:00]} 12. h4 {[%clk 0:02:53]}  Re8 {[%clk 0:01:32]} 13. Bd3 {[%clk 0:02:50]}  e5 {[%clk 0:01:29]} 14. Be3 {[%clk 0:02:49]}  d5 {[%clk 0:01:26]} 15. exd5 {[%clk 0:02:48]}  Nxd5 {[%clk 0:01:25]} 16. h5 {[%clk 0:02:45]}  Nxe3 {[%clk 0:01:23]} 17. Rxe3 {[%clk 0:02:41]}  exd4 {[%clk 0:01:02]} 18. Rxe8+ {[%clk 0:02:39]}  Qxe8 {[%clk 0:01:02]} 19. hxg6 {[%clk 0:02:40]}  fxg6 {[%clk 0:00:59]} 20. Nxd4 {[%clk 0:02:39]}  Ne5 {[%clk 0:00:49]} 21. Qb3+ {[%clk 0:02:36]}  Kh7 {[%clk 0:00:45]} 22. Bc2 {[%clk 0:02:35]}  c5 {[%clk 0:00:44]} 23. Qxb6 {[%clk 0:02:33]}  Bxg2 {[%clk 0:00:34]} 24. Kxg2 {[%clk 0:02:31]}  cxd4 {[%clk 0:00:34]} 25. cxd4 {[%clk 0:02:32]}  Rb8 {[%clk 0:00:34]} 26. Qxa6 {[%clk 0:02:28]}  Rxb2 {[%clk 0:00:33]} 27. dxe5 {[%clk 0:02:18]}  Rxc2 {[%clk 0:00:33]} 28. Re1 {[%clk 0:02:19]}  Qf7 {[%clk 0:00:27]} 29. Re2 {[%clk 0:02:13]}  Qd5+ {[%clk 0:00:24]} 30. f3 {[%clk 0:02:13]}  Rc1 {[%clk 0:00:21]} 31. e6 {[%clk 0:02:05]}  Qd1 {[%clk 0:00:20]} 32. Qa7 {[%clk 0:02:05]}  Rc2 {[%clk 0:00:18]} 33. Qf2 {[%clk 0:02:03]}  Rxe2 {[%clk 0:00:15]} 34. Qxe2 {[%clk 0:02:04]}  Qxa4 {[%clk 0:00:15]} 35. e7 {[%clk 0:02:04]}  Qe8 {[%clk 0:00:15]} 36. Qe6 {[%clk 0:02:04]}  h5 {[%clk 0:00:14]} 37. Ne4 {[%clk 0:02:05]}  Kh6 {[%clk 0:00:12]} 38. Nd6 {[%clk 0:02:05]}  Qc6 {[%clk 0:00:09]} 39. Nf7+ {[%clk 0:02:05]}  Kh7 {[%clk 0:00:05]} 40. Qxc6 {[%clk 0:02:06]} 1-0


[Site "https://www.chess.com"]

[Event "Titled Tuesday Blitz August 15 Late 2023"]
[White "Alex_Sahakyan2006"]
[Black "Tsotsonava, Elene"]
[BlackFideId "13615939"]
[WhiteElo "2709"]
[BlackElo "2387"]
[Result "0-1"]
[Round "1"]
[TimeControl "180+1"]
[Date "2023.08.15"]
[WhiteClock "0:00:23"]
[BlackClock "0:00:26"]
[Board "86"]

1. e4 {[%clk 0:03:00]}  c5 {[%clk 0:02:56]} 2. Nc3 {[%clk 0:03:00]}  e6 {[%clk 0:02:52]} 3. Nge2 {[%clk 0:02:53]}  Nc6 {[%clk 0:02:50]} 4. g3 {[%clk 0:02:51]}  Nf6 {[%clk 0:02:49]} 5. Bg2 {[%clk 0:02:51]}  d6 {[%clk 0:02:50]} 6. d4 {[%clk 0:02:50]}  cxd4 {[%clk 0:02:50]} 7. Nxd4 {[%clk 0:02:50]}  Bd7 {[%clk 0:02:51]} 8. O-O {[%clk 0:02:50]}  Qc7 {[%clk 0:02:50]} 9. Be3 {[%clk 0:02:49]}  Be7 {[%clk 0:02:47]} 10. h3 {[%clk 0:02:49]}  Rc8 {[%clk 0:02:46]} 11. Qd2 {[%clk 0:02:49]}  Ne5 {[%clk 0:02:46]} 12. Qe2 {[%clk 0:02:48]}  Nc4 {[%clk 0:02:46]} 13. Bc1 {[%clk 0:02:48]}  a6 {[%clk 0:02:45]} 14. a4 {[%clk 0:02:43]}  h5 {[%clk 0:02:45]} 15. b3 {[%clk 0:02:41]}  Ne5 {[%clk 0:02:35]} 16. Bb2 {[%clk 0:02:40]}  Qc5 {[%clk 0:02:28]} 17. Rfd1 {[%clk 0:02:39]}  Nc6 {[%clk 0:02:27]} 18. Nxc6 {[%clk 0:02:37]}  Bxc6 {[%clk 0:02:27]} 19. Rd2 {[%clk 0:02:19]}  O-O {[%clk 0:02:26]} 20. Rad1 {[%clk 0:02:18]}  d5 {[%clk 0:02:04]} 21. exd5 {[%clk 0:02:17]}  Nxd5 {[%clk 0:02:03]} 22. Nxd5 {[%clk 0:02:17]}  Bxd5 {[%clk 0:02:03]} 23. Bxd5 {[%clk 0:02:17]}  exd5 {[%clk 0:02:04]} 24. Rxd5 {[%clk 0:02:18]}  Qxc2 {[%clk 0:02:04]} 25. Qxc2 {[%clk 0:01:58]}  Rxc2 {[%clk 0:02:01]} 26. R1d2 {[%clk 0:01:53]}  Rfc8 {[%clk 0:01:57]} 27. Kg2 {[%clk 0:01:47]}  Bb4 {[%clk 0:01:52]} 28. Rxc2 {[%clk 0:01:43]}  Rxc2 {[%clk 0:01:53]} 29. Bd4 {[%clk 0:01:40]}  h4 {[%clk 0:01:49]} 30. gxh4 {[%clk 0:01:34]}  Rd2 {[%clk 0:01:50]} 31. Rd8+ {[%clk 0:01:33]}  Kh7 {[%clk 0:01:49]} 32. Bb6 {[%clk 0:01:32]}  Rxd8 {[%clk 0:01:47]} 33. Bxd8 {[%clk 0:01:33]}  Kg6 {[%clk 0:01:48]} 34. Kf3 {[%clk 0:01:33]}  Kf5 {[%clk 0:01:48]} 35. Bg5 {[%clk 0:01:32]}  f6 {[%clk 0:01:45]} 36. Be3 {[%clk 0:01:32]}  g6 {[%clk 0:01:46]} 37. Ke2 {[%clk 0:01:31]}  Ke4 {[%clk 0:01:46]} 38. f3+ {[%clk 0:01:31]}  Kd5 {[%clk 0:01:47]} 39. Kd3 {[%clk 0:01:32]}  Be1 {[%clk 0:01:46]} 40. h5 {[%clk 0:01:29]}  gxh5 {[%clk 0:01:46]} 41. Bd4 {[%clk 0:01:28]}  f5 {[%clk 0:01:46]} 42. Bf6 {[%clk 0:01:27]}  Ba5 {[%clk 0:01:43]} 43. Ke3 {[%clk 0:01:26]}  Bc7 {[%clk 0:01:43]} 44. Bc3 {[%clk 0:01:24]}  b5 {[%clk 0:01:33]} 45. axb5 {[%clk 0:01:25]}  axb5 {[%clk 0:01:33]} 46. Bb4 {[%clk 0:01:24]}  Be5 {[%clk 0:01:32]} 47. Be7 {[%clk 0:01:22]}  Bd4+ {[%clk 0:01:26]} 48. Kf4 {[%clk 0:01:21]}  Ke6 {[%clk 0:01:24]} 49. Bd8 {[%clk 0:01:20]}  Bf2 {[%clk 0:01:06]} 50. h4 {[%clk 0:00:49]}  Kd7 {[%clk 0:01:03]} 51. Bf6 {[%clk 0:00:48]}  Ke6 {[%clk 0:01:03]} 52. Bg5 {[%clk 0:00:48]}  Be1 {[%clk 0:01:01]} 53. Ke3 {[%clk 0:00:44]}  Kd5 {[%clk 0:00:59]} 54. Bd8 {[%clk 0:00:40]}  Bg3 {[%clk 0:00:49]} 55. Bg5 {[%clk 0:00:28]}  Kc5 {[%clk 0:00:46]} 56. Be7+ {[%clk 0:00:28]}  Kd5 {[%clk 0:00:46]} 57. Kd3 {[%clk 0:00:28]}  Ke6 {[%clk 0:00:44]} 58. Bd8 {[%clk 0:00:28]}  Kd5 {[%clk 0:00:41]} 59. Kc3 {[%clk 0:00:25]}  Be1+ {[%clk 0:00:39]} 60. Kd3 {[%clk 0:00:26]}  Bg3 {[%clk 0:00:39]} 61. Ke3 {[%clk 0:00:26]}  Kc5 {[%clk 0:00:36]} 62. Be7+ {[%clk 0:00:22]}  Kd5 {[%clk 0:00:36]} 63. Bf6 {[%clk 0:00:17]}  Ke6 {[%clk 0:00:36]} 64. Bg5 {[%clk 0:00:16]}  Kd5 {[%clk 0:00:36]} 65. Ke2 {[%clk 0:00:16]}  Kc5 {[%clk 0:00:32]} 66. Kd3 {[%clk 0:00:16]}  Kd5 {[%clk 0:00:32]} 67. Bd2 {[%clk 0:00:15]}  Bxh4 {[%clk 0:00:31]} 68. Bf4 {[%clk 0:00:16]}  Bf2 {[%clk 0:00:31]} 69. Ke2 {[%clk 0:00:16]}  Bd4 {[%clk 0:00:31]} 70. Bg5 {[%clk 0:00:16]}  Ke5 {[%clk 0:00:27]} 71. Kd3 {[%clk 0:00:15]}  Kd5 {[%clk 0:00:27]} 72. Bd8 {[%clk 0:00:14]}  Be5 {[%clk 0:00:26]} 73. Be7 {[%clk 0:00:13]}  Bg3 {[%clk 0:00:26]} 74. Ke2 {[%clk 0:00:12]}  h4 {[%clk 0:00:27]} 75. Kf1 {[%clk 0:00:12]}  h3 {[%clk 0:00:27]} 76. b4 {[%clk 0:00:10]}  Kd4 {[%clk 0:00:27]} 77. Bc5+ {[%clk 0:00:10]}  Kd3 {[%clk 0:00:26]} 78. Ba7 {[%clk 0:00:10]}  Be5 {[%clk 0:00:25]} 79. Kg1 {[%clk 0:00:11]}  Bd4+ {[%clk 0:00:25]} 80. Bxd4 {[%clk 0:00:11]}  Kxd4 {[%clk 0:00:26]} 81. Kh2 {[%clk 0:00:12]}  Ke3 {[%clk 0:00:26]} 82. Kg3 {[%clk 0:00:12]}  h2 {[%clk 0:00:25]} 83. Kxh2 {[%clk 0:00:12]}  Kxf3 {[%clk 0:00:26]} 84. Kg1 {[%clk 0:00:12]}  Ke2 {[%clk 0:00:26]} 85. Kg2 {[%clk 0:00:13]}  f4 {[%clk 0:00:26]} 86. Kh2 {[%clk 0:00:14]}  f3 {[%clk 0:00:27]} 87. Kg1 {[%clk 0:00:14]}  f2+ {[%clk 0:00:27]} 88. Kh2 {[%clk 0:00:15]}  f1=Q {[%clk 0:00:27]} 89. Kg3 {[%clk 0:00:16]}  Qf3+ {[%clk 0:00:27]} 90. Kh2 {[%clk 0:00:17]}  Qf4+ {[%clk 0:00:26]} 91. Kh1 {[%clk 0:00:18]}  Qxb4 {[%clk 0:00:26]} 92. Kg1 {[%clk 0:00:19]}  Qe1+ {[%clk 0:00:27]} 93. Kh2 {[%clk 0:00:19]}  Qf2+ {[%clk 0:00:26]} 94. Kh1 {[%clk 0:00:20]}  Qf3+ {[%clk 0:00:27]} 95. Kg1 {[%clk 0:00:21]}  b4 {[%clk 0:00:26]} 96. Kh2 {[%clk 0:00:21]}  b3 {[%clk 0:00:26]} 97. Kg1 {[%clk 0:00:22]}  b2 {[%clk 0:00:27]} 98. Kh2 {[%clk 0:00:23]}  Qf2+ {[%clk 0:00:26]} 99. Kh1 {[%clk 0:00:23]}  b1=Q# {[%clk 0:00:26]} 0-1


[Site "https://www.chess.com"]

[Event "Titled Tuesday Blitz August 15 Late 2023"]
[White "Korchmar, Vasiliy"]
[Black "Vifleemskaia, Svetlana"]
[WhiteFideId "24131750"]
[BlackFideId "4129490"]
[WhiteElo "2705"]
[BlackElo "2384"]
[Result "1-0"]
[Round "1"]
[TimeControl "180+1"]
[Date "2023.08.15"]
[WhiteClock "0:01:50"]
[BlackClock "0:00:05"]
[Board "88"]

1. e4 {[%clk 0:03:00]}  e5 {[%clk 0:02:59]} 2. Nf3 {[%clk 0:02:59]}  Nc6 {[%clk 0:02:59]} 3. Bc4 {[%clk 0:02:59]}  Nf6 {[%clk 0:02:59]} 4. d3 {[%clk 0:02:59]}  Be7 {[%clk 0:02:59]} 5. O-O {[%clk 0:02:59]}  O-O {[%clk 0:02:59]} 6. a4 {[%clk 0:02:58]}  a6 {[%clk 0:02:58]} 7. Nc3 {[%clk 0:02:57]}  d6 {[%clk 0:02:55]} 8. Re1 {[%clk 0:02:54]}  Be6 {[%clk 0:02:51]} 9. Nd5 {[%clk 0:02:53]}  Re8 {[%clk 0:02:34]} 10. c3 {[%clk 0:02:47]}  h6 {[%clk 0:02:26]} 11. h3 {[%clk 0:02:46]}  Bf8 {[%clk 0:02:21]} 12. Ne3 {[%clk 0:02:32]}  d5 {[%clk 0:02:09]} 13. exd5 {[%clk 0:02:32]}  Nxd5 {[%clk 0:02:09]} 14. Ng4 {[%clk 0:02:29]}  Bxg4 {[%clk 0:01:19]} 15. hxg4 {[%clk 0:02:27]}  Nb6 {[%clk 0:01:20]} 16. Bb3 {[%clk 0:02:23]}  Qd7 {[%clk 0:01:16]} 17. g5 {[%clk 0:02:22]}  Qg4 {[%clk 0:00:59]} 18. gxh6 {[%clk 0:02:18]}  gxh6 {[%clk 0:00:58]} 19. Be3 {[%clk 0:02:06]}  Bg7 {[%clk 0:00:53]} 20. Qd2 {[%clk 0:02:06]}  h5 {[%clk 0:00:40]} 21. Bh6 {[%clk 0:02:03]}  Rad8 {[%clk 0:00:36]} 22. Bxg7 {[%clk 0:01:52]}  Kxg7 {[%clk 0:00:34]} 23. Re3 {[%clk 0:01:52]}  h4 {[%clk 0:00:23]} 24. Nh2 {[%clk 0:01:51]}  Qg5 {[%clk 0:00:05]} 25. Rg3 {[%clk 0:01:50]} 1-0


[Site "https://www.chess.com"]